fUST/lending_fUST_20260101
["ID","MTS","AMOUNT","RATE_DAILY","PERIOD"]
[400229241,1767207040462,-612.575308,0.000249,7]
[400229243,1767207040472,-612.575308,0.000249,7]
[400229245,1767207040482,-2577.1856512,0.000249,2]
[400229247,1767207040492,-610.26,0.00024931,2]
[400229248,1767207040501,-1371.98,0.00024931,2]
[400229249,1767207040511,-1196.44,0.00024931,2]
[400229250,1767207040520,-508.03,0.00024931,2]
[400229251,1767207040530,-5713.32,0.00024931,2]
[400229252,1767207040540,-874.95,0.00024931,2]
[400229253,1767207040550,-500.0,0.00024931,2]
[400229254,1767207040560,-2265.65,0.00024931,2]
[400229255,1767207040570,-9696.43,0.00024931,2]
[400229256,1767207040580,-500.0,0.00024931,2]
[400229257,1767207040590,-524.16,0.00024931,2]
[400229258,1767207040600,-679.28,0.00024931,2]
[400229259,1767207040610,-580.59,0.00024931,2]
[400229260,1767207040620,-546.52,0.00024931,2]
[400229261,1767207040629,-651.97,0.00024931,2]
[400229262,1767207040639,-165.22,0.00025,7]
[400229263,1767207040649,-159.87,0.00025,7]
[400229264,1767207040659,-610.26,0.00025205,2]
[400229265,1767207040668,-1371.98,0.00025205,2]
[400229266,1767207040678,-1196.44,0.00025205,2]
[400229267,1767207040687,-151.0,0.00025205,7]
[400229268,1767207040697,-151.0,0.00025205,7]
[400229269,1767207040707,-151.0,0.00025205,7]
[400229270,1767207040716,-151.0,0.00025205,7]
[400229271,1767207040726,-508.03,0.00025205,2]
[400229273,1767207040736,-5713.32,0.00025205,2]
[400229275,1767207040745,-874.95,0.00025205,2]
[400229276,1767207040754,-500.0,0.00025205,2]
[400229278,1767207040764,-2265.65,0.00025205,2]
[400229280,1767207040773,-9696.43,0.00025205,2]
[400229282,1767207040783,-500.0,0.00025205,2]
[400229284,1767207040792,-524.16,0.00025205,2]
[400229286,1767207040802,-679.28,0.00025205,2]
[400229288,1767207040812,-580.59,0.00025205,2]
[400229290,1767207040821,-546.52,0.00025205,2]
[400229292,1767207040830,-651.97,0.00025205,2]
[400229294,1767207040841,-151.50509152,0.00025205,2]
[400229296,1767207040850,-12143.98,0.000253,2]
[400229298,1767207040859,-1324.78,0.000253,14]
[400229300,1767207040868,-337.601553,0.00025342,2]
[400229302,1767207040878,-610.26,0.00025479,2]
[400229304,1767207040891,-1371.98,0.00025479,2]
[400229306,1767207040901,-1196.44,0.00025479,2]
[400229308,1767207040911,-508.03,0.00025479,2]
[400229310,1767207040921,-5713.32,0.00025479,2]
[400229312,1767207040930,-874.95,0.00025479,2]
[400229314,1767207040940,-500.0,0.00025479,2]
[400229316,1767207040949,-2265.65,0.00025479,2]
[400229318,1767207040960,-9696.43,0.00025479,2]
[400229320,1767207040969,-500.0,0.00025479,2]
[400229322,1767207040979,-524.16,0.00025479,2]
[400229324,1767207040988,-679.28,0.00025479,2]
[400229326,1767207040998,-580.59,0.00025479,2]
[400229328,1767207041007,-546.52,0.00025479,2]
[400229330,1767207041016,-651.97,0.00025479,2]
[400229332,1767207041026,-745.49557087,0.00025653,2]
[400229334,1767207041035,-200.54705607,0.00025753,15]
[400229336,1767207041045,-610.26,0.00025753,2]
[400229338,1767207041054,-1371.98,0.00025753,2]
[400229340,1767207041063,-1196.44,0.00025753,2]
[400229342,1767207041072,-508.03,0.00025753,2]
[400229344,1767207041082,-5713.32,0.00025753,2]
[400229346,1767207041091,-874.95,0.00025753,2]
[400229348,1767207041101,-500.0,0.00025753,2]
[400229350,1767207041111,-2265.65,0.00025753,2]
[400229352,1767207041121,-9696.43,0.00025753,2]
[400229354,1767207041130,-500.0,0.00025753,2]
[400229356,1767207041139,-524.16,0.00025753,2]
[400229358,1767207041149,-679.28,0.00025753,2]
[400229360,1767207041159,-580.59,0.00025753,2]
[400229362,1767207041168,-546.52,0.00025753,2]
[400229364,1767207041177,-651.97,0.00025753,2]
[400229365,1767207041186,-610.26,0.00026027,2]
[400229367,1767207041196,-1371.98,0.00026027,2]
[400229369,1767207041205,-1196.44,0.00026027,2]
[400229371,1767207041214,-508.03,0.00026027,2]
[400229373,1767207041223,-5713.32,0.00026027,2]
[400229375,1767207041233,-874.95,0.00026027,2]
[400229377,1767207041243,-500.0,0.00026027,2]
[400229379,1767207041252,-2265.65,0.00026027,2]
[400229385,1767207041261,-9696.43,0.00026027,2]
[400229387,1767207041301,-500.0,0.00026027,2]
[400229389,1767207041310,-524.16,0.00026027,2]
[400229391,1767207041319,-679.28,0.00026027,2]
[400229393,1767207041328,-580.59,0.00026027,2]
[400229395,1767207041337,-546.52,0.00026027,2]
[400229396,1767207041347,-651.97,0.00026027,2]
[400229398,1767207041355,-610.26,0.00026301,2]
[400229400,1767207041364,-1371.98,0.00026301,2]
[400229402,1767207041373,-151.0,0.00026301,7]
[400229404,1767207041382,-1196.44,0.00026301,2]
[400229406,1767207041391,-508.03,0.00026301,2]
[400229408,1767207041401,-5713.32,0.00026301,2]
[400229410,1767207041411,-874.95,0.00026301,2]
[400229412,1767207041421,-286.39883318,0.00026301,2]
[400229414,1767207041430,-2265.65,0.00026301,2]
[400229416,1767207041439,-9696.43,0.00026301,2]
[400229418,1767207041449,-500.0,0.00026301,2]
[400229420,1767207041458,-524.16,0.00026301,2]
[400229422,1767207041468,-679.28,0.00026301,2]
[400229424,1767207041477,-580.59,0.00026301,2]
[400229426,1767207041487,-546.52,0.00026301,2]
[400229428,1767207041496,-651.97,0.00026301,2]
[400229430,1767207041505,-239.6,0.00026324,2]
[400229432,1767207041515,-1532.0708622,0.00026529,2]
[400229434,1767207041524,-1266.6604661,0.00026529,2]
[400229436,1767207041534,-54502.4513906,0.00026529,2]
[400229438,1767207041543,-42332.2730793,0.00026529,2]
[400229440,1767207041553,-610.26,0.00026575,2]
[400229442,1767207041562,-1371.98,0.00026575,2]
[400229444,1767207041572,-1196.44,0.00026575,2]
[400229446,1767207041582,-508.03,0.00026575,2]
[400229448,1767207041591,-5713.32,0.00026575,2]
[400229450,1767207041601,-874.95,0.00026575,2]
[400229452,1767207041610,-2265.65,0.00026575,2]
[400229454,1767207041619,-9696.43,0.00026575,2]
[400229456,1767207041628,-500.0,0.00026575,2]
[400229458,1767207041637,-524.16,0.00026575,2]
[400229460,1767207041646,-679.28,0.00026575,2]
[400229462,1767207041657,-580.59,0.00026575,2]
[400229464,1767207041666,-546.52,0.00026575,2]
[400229466,1767207041676,-651.97,0.00026575,2]
[400229468,1767207041687,-835.40435814,0.00026578,2]
[400229470,1767207041696,-5000.0,0.00026621,2]
[400229472,1767207041705,-200.54705607,0.00026848,17]
[400229474,1767207041714,-610.26,0.00026849,2]
[400229476,1767207041724,-1371.98,0.00026849,2]
[400229478,1767207041734,-1196.44,0.00026849,2]
[400229480,1767207041742,-508.03,0.00026849,2]
[400229482,1767207041751,-5713.32,0.00026849,2]
[400229483,1767207041761,-874.95,0.00026849,2]
[400229485,1767207041770,-2265.65,0.00026849,2]
[400229487,1767207041779,-9696.43,0.00026849,2]
[400229488,1767207041788,-500.0,0.00026849,2]
[400229490,1767207041798,-524.16,0.00026849,2]
[400229492,1767207041807,-679.28,0.00026849,2]
[400229494,1767207041816,-580.59,0.00026849,2]
[400229496,1767207041826,-546.52,0.00026849,2]
[400229497,1767207041835,-651.97,0.00026849,2]
[400229499,1767207041844,-4948.49043632,0.00027106,2]
[400229501,1767207041854,-610.26,0.00027123,2]
[400229503,1767207041863,-1371.98,0.00027123,2]
[400229505,1767207041871,-1196.44,0.00027123,2]
[400229507,1767207041880,-508.03,0.00027123,2]
[400229509,1767207041892,-5713.32,0.00027123,2]
[400229511,1767207041902,-874.95,0.00027123,2]
[400229513,1767207041911,-2265.65,0.00027123,2]
[400229515,1767207041921,-9696.43,0.00027123,2]
[400229517,1767207041930,-500.0,0.00027123,2]
[400229519,1767207041940,-524.16,0.00027123,2]
[400229521,1767207041949,-679.28,0.00027123,2]
[400229523,1767207041960,-580.59,0.00027123,2]
[400229525,1767207041969,-546.52,0.00027123,2]
[400229527,1767207041978,-651.97,0.00027123,2]
[400229529,1767207041987,-2000.0,0.00027352,7]
[400229531,1767207041996,-2000.0,0.00027361,7]
[400229532,1767207042006,-2000.0,0.0002737,7]
[400229534,1767207042015,-2000.0,0.00027378,7]
[400229536,1767207042024,-2000.0,0.00027387,7]
[400229538,1767207042033,-2000.0,0.00027396,7]
[400229540,1767207042042,-610.26,0.00027397,2]
[400229542,1767207042051,-1371.98,0.00027397,2]
[400229544,1767207042060,-1196.44,0.00027397,2]
[400229546,1767207042070,-508.03,0.00027397,2]
[400229548,1767207042079,-5713.32,0.00027397,2]
[400229550,1767207042089,-874.95,0.00027397,2]
[400229552,1767207042098,-2265.65,0.00027397,2]
[400229554,1767207042108,-9696.43,0.00027397,2]
[400229556,1767207042117,-565.44225153,0.00027397,2]
[400229558,1767207042126,-524.16,0.00027397,2]
[400229560,1767207042137,-679.28,0.00027397,2]
[400229561,1767207042146,-580.59,0.00027397,2]
[400229563,1767207042157,-546.52,0.00027397,2]
[400229565,1767207042166,-651.97,0.00027397,2]
[400229567,1767207042175,-299.0,0.00027397,2]
[400229569,1767207042185,-299.0,0.00027397,2]
[400229571,1767207042194,-299.0,0.00027397,2]
[400229573,1767207042204,-299.0,0.00027397,2]
[400229575,1767207042213,-299.0,0.00027397,2]
[400229577,1767207042223,-299.0,0.00027397,2]
[400229579,1767207042232,-299.0,0.00027397,2]
[400229581,1767207042242,-299.0,0.00027397,2]
[400229583,1767207042251,-299.0,0.00027397,2]
[400229584,1767207042261,-299.0,0.00027397,2]
[400229586,1767207042270,-299.0,0.00027397,2]
[400229588,1767207042280,-299.0,0.00027397,2]
[400229590,1767207042289,-299.0,0.00027397,2]
[400229592,1767207042299,-299.0,0.00027397,2]
[400229594,1767207042308,-299.0,0.00027397,2]
[400229596,1767207042318,-299.0,0.00027397,2]
[400229598,1767207042330,-299.0,0.00027397,2]
[400229600,1767207042339,-299.0,0.00027397,2]
[400229602,1767207042348,-299.0,0.00027397,2]
[400229604,1767207042358,-299.0,0.00027397,2]
[400229605,1767207042368,-299.0,0.00027397,2]
[400229607,1767207042378,-299.0,0.00027397,2]
[400229609,1767207042388,-299.0,0.00027397,2]
[400229611,1767207042397,-299.0,0.00027397,2]
[400229613,1767207042407,-299.0,0.00027397,2]
[400229615,1767207042417,-299.0,0.00027397,2]
[400229617,1767207042426,-299.0,0.00027397,2]
[400229619,1767207042437,-299.0,0.00027397,2]
[400229621,1767207042447,-299.0,0.00027397,2]
[400229623,1767207042456,-299.0,0.00027397,2]
[400229625,1767207042465,-299.0,0.00027397,2]
[400229627,1767207042475,-299.0,0.00027397,2]
[400229629,1767207042484,-151.0,0.00027397,7]
[400229631,1767207042494,-151.0,0.00027397,7]
[400229633,1767207042503,-151.0,0.00027397,7]
[400229635,1767207042513,-151.0,0.00027397,7]
[400229636,1767207042523,-151.0,0.00027397,7]
[400229638,1767207042532,-151.0,0.00027397,7]
[400229640,1767207042542,-151.0,0.00027397,7]
[400229642,1767207042551,-151.0,0.00027397,7]
[400229644,1767207042561,-151.0,0.00027397,7]
[400229646,1767207042571,-151.0,0.00027397,7]
[400229648,1767207042580,-151.0,0.00027397,7]
[400229650,1767207042590,-151.0,0.00027397,7]
[400229652,1767207042600,-158.892051,0.00027397,7]
[400229654,1767207042609,-158.892051,0.00027397,7]
[400229656,1767207042619,-158.892051,0.00027397,7]
[400229658,1767207042628,-158.892051,0.00027397,7]
[400229660,1767207042638,-151.0,0.00027397,7]
[400229662,1767207042647,-151.0,0.00027397,7]
[400229664,1767207042656,-151.0,0.00027397,7]
[400229666,1767207042667,-151.0,0.00027397,7]
[400229668,1767207042676,-1419.163026,0.00027397,7]
[400229670,1767207042685,-151.0,0.00027397,7]
[400229672,1767207042695,-1419.163026,0.00027397,7]
[400229674,1767207042704,-151.0,0.00027397,7]
[400229676,1767207042713,-151.0,0.00027397,7]
[400229678,1767207042723,-1419.163026,0.00027397,7]
[400229680,1767207042732,-1419.163026,0.00027397,7]
[400229682,1767207042742,-171.736498,0.00027397,7]
[400229684,1767207042751,-171.736498,0.00027397,7]
[400229686,1767207042760,-171.736498,0.00027397,7]
[400229688,1767207042770,-171.736498,0.00027397,7]
[400229690,1767207042779,-947.358642,0.00027397,7]
[400229692,1767207042789,-947.358642,0.00027397,7]
[400229693,1767207042798,-947.358642,0.00027397,7]
[400229695,1767207042808,-947.358642,0.00027397,7]
[400229697,1767207042817,-151.0,0.00027397,7]
[400229699,1767207042826,-151.0,0.00027397,7]
[400229701,1767207042836,-151.0,0.00027397,7]
[400229703,1767207042846,-221.765393,0.00027397,7]
[400229705,1767207042856,-151.0,0.00027397,7]
[400229707,1767207042865,-160.429789,0.00027397,7]
[400229709,1767207042875,-151.0,0.00027397,7]
[400229711,1767207042887,-151.0,0.00027397,7]
[400229713,1767207042896,-151.0,0.00027397,7]
[400229715,1767207042906,-151.0,0.00027397,7]
[400229717,1767207042915,-270.657289,0.00027397,7]
[400229719,1767207042925,-270.657289,0.00027397,7]
[400229720,1767207042935,-270.657289,0.00027397,7]
[400229721,1767207042944,-270.657289,0.00027397,7]
[400229722,1767207042954,-351.647028,0.00027397,7]
[400229723,1767207042963,-151.0,0.00027397,7]
[400229724,1767207042973,-351.647028,0.00027397,7]
[400229725,1767207042982,-351.647028,0.00027397,7]
[400229726,1767207042991,-151.0,0.00027397,7]
[400229727,1767207043001,-351.647028,0.00027397,7]
[400229728,1767207043011,-315.210295,0.00027397,7]
[400229729,1767207043020,-315.210295,0.00027397,7]
[400229730,1767207043029,-315.210295,0.00027397,7]
[400229731,1767207043039,-315.210295,0.00027397,7]
[400229732,1767207043048,-1087.238041,0.00027397,7]
[400229733,1767207043058,-1087.238041,0.00027397,7]
[400229734,1767207043067,-1087.238041,0.00027397,7]
[400229735,1767207043077,-1087.238041,0.00027397,7]
[400229736,1767207043086,-247.168557,0.00027397,7]
[400229737,1767207043096,-414.72566,0.00027397,7]
[400229738,1767207043105,-414.72566,0.00027397,7]
[400229740,1767207043115,-414.72566,0.00027397,7]
[400229743,1767207043124,-414.72566,0.00027397,7]
[400229745,1767207043134,-166.112827,0.00027397,7]
[400229747,1767207043143,-151.0,0.00027397,7]
[400229748,1767207043153,-440.924061,0.00027397,7]
[400229750,1767207043163,-440.924061,0.00027397,7]
[400229751,1767207043173,-440.924061,0.00027397,7]
[400229753,1767207043183,-440.924061,0.00027397,7]
[400229754,1767207043193,-151.0,0.00027397,7]
[400229755,1767207043202,-151.0,0.00027397,7]
[400229756,1767207043212,-151.0,0.00027397,7]
[400229757,1767207043221,-151.0,0.00027397,7]
[400229758,1767207043231,-151.0,0.00027397,7]
[400229759,1767207043240,-151.0,0.00027397,7]
[400229760,1767207043250,-151.0,0.00027397,7]
[400229761,1767207043260,-435.404982,0.00027397,7]
[400229762,1767207043269,-352.845551,0.00027397,7]
[400229763,1767207043278,-270.454127,0.00027397,7]
[400229764,1767207043287,-435.404982,0.00027397,7]
[400229765,1767207043298,-352.845551,0.00027397,7]
[400229766,1767207043307,-270.454127,0.00027397,7]
[400229767,1767207043316,-352.845551,0.00027397,7]
[400229768,1767207043325,-435.404982,0.00027397,7]
[400229769,1767207043334,-270.454127,0.00027397,7]
[400229770,1767207043343,-352.845551,0.00027397,7]
[400229771,1767207043352,-435.404982,0.00027397,7]
[400229772,1767207043361,-270.454127,0.00027397,7]
[400229773,1767207043371,-151.0,0.00027397,7]
[400229774,1767207043381,-151.0,0.00027397,7]
[400229775,1767207043390,-151.0,0.00027397,7]
[400229776,1767207043399,-151.0,0.00027397,7]
[400229777,1767207043409,-151.0,0.00027397,7]
[400229778,1767207043418,-300.511634,0.00027397,7]
[400229779,1767207043428,-152.611704,0.00027397,7]
[400229780,1767207043438,-394.521351,0.00027397,7]
[400229781,1767207043448,-429.596572,0.00027397,7]
[400229782,1767207043458,-394.521351,0.00027397,7]
[400229783,1767207043467,-429.596572,0.00027397,7]
[400229784,1767207043477,-394.521351,0.00027397,7]
[400229785,1767207043486,-429.596572,0.00027397,7]
[400229786,1767207043496,-394.521351,0.00027397,7]
[400229787,1767207043506,-429.596572,0.00027397,7]
[400229788,1767207043515,-177.488115,0.00027397,7]
[400229789,1767207043525,-182.784702,0.00027397,7]
[400229790,1767207043535,-805.861522,0.00027397,7]
[400229791,1767207043545,-805.861522,0.00027397,7]
[400229792,1767207043555,-151.0,0.00027397,7]
[400229793,1767207043564,-805.861522,0.00027397,7]
[400229794,1767207043574,-151.0,0.00027397,7]
[400229795,1767207043584,-187.899686,0.00027397,7]
[400229796,1767207043593,-805.861522,0.00027397,7]
[400229797,1767207043603,-151.0,0.00027397,7]
[400229798,1767207043614,-209.486994,0.00027397,7]
[400229799,1767207043624,-1973.671944,0.00027397,7]
[400229800,1767207043634,-151.0,0.00027397,7]
[400229801,1767207043643,-1973.671944,0.00027397,7]
[400229802,1767207043653,-1973.671944,0.00027397,7]
[400229803,1767207043663,-1973.671944,0.00027397,7]
[400229804,1767207043673,-151.0,0.00027397,7]
[400229805,1767207043683,-239.000196,0.00027397,7]
[400229806,1767207043693,-234.643774,0.00027397,7]
[400229807,1767207043703,-227.124845,0.00027397,7]
[400229808,1767207043712,-227.124845,0.00027397,7]
[400229809,1767207043722,-227.124845,0.00027397,7]
[400229810,1767207043732,-227.124845,0.00027397,7]
[400229811,1767207043742,-1549.100689,0.00027397,7]
[400229812,1767207043751,-1549.100689,0.00027397,7]
[400229813,1767207043761,-1549.100689,0.00027397,7]
[400229814,1767207043770,-1549.100689,0.00027397,7]
[400229815,1767207043780,-230.54366,0.00027397,7]
[400229816,1767207043790,-179.18193,0.00027397,7]
[400229817,1767207043800,-230.54366,0.00027397,7]
[400229818,1767207043810,-230.54366,0.00027397,7]
[400229819,1767207043819,-230.54366,0.00027397,7]
[400229820,1767207043829,-500.65812564,0.00027397,5]
[400229821,1767207043935,-150.58382148,0.00027397,5]
[400229822,1767207043946,-150.0,0.00027397,5]
[400229823,1767207043957,-2000.0,0.00027405,7]
[400229824,1767207043967,-2000.0,0.00027414,7]
[400229825,1767207043976,-2000.0,0.00027422,7]
[400229826,1767207043985,-2000.0,0.00027431,7]
[400229827,1767207043995,-3147.76375777,0.00027437,2]
[400229828,1767207044004,-2000.0,0.0002744,7]
[400229829,1767207044013,-2000.0,0.00027449,7]
[400229830,1767207044022,-2000.0,0.00027458,7]
[400229831,1767207044031,-2000.0,0.00027466,7]
[400229832,1767207044041,-2000.0,0.00027475,7]
[400229833,1767207044050,-2000.0,0.00027484,7]
[400229834,1767207044060,-5000.0,0.00027487,12]
[400229836,1767207044070,-6464.62555377,0.00027488,12]
[400229837,1767207044079,-5000.0,0.00027488,11]
[400229838,1767207044088,-5000.0,0.00027488,11]
[400229839,1767207044098,-5000.0,0.00027488,10]
[400229840,1767207044107,-5000.0,0.00027488,12]
[400229841,1767207044116,-2000.0,0.00027493,7]
[400229843,1767207044126,-156.46,0.000275,7]
[400229845,1767207044135,-346.71,0.000275,7]
[400229846,1767207044145,-2000.0,0.00027502,7]
[400229848,1767207044154,-166.0,0.00027507,25]
[400229850,1767207044164,-2000.0,0.0002751,7]
[400229852,1767207044173,-2000.0,0.00027519,7]
[400229854,1767207044183,-2000.0,0.00027528,7]
[400229856,1767207044192,-2000.0,0.00027537,7]
[400229858,1767207044201,-2000.0,0.00027546,7]
[400229859,1767207044210,-2000.0,0.00027554,7]
[400229861,1767207044219,-2000.0,0.00027563,7]
[400229863,1767207044228,-2000.0,0.00027572,7]
[400229865,1767207044238,-2000.0,0.00027581,7]
[400229867,1767207044248,-2000.0,0.0002759,7]
[400229869,1767207044257,-2000.0,0.00027598,7]
[400229870,1767207044266,-2000.0,0.00027607,7]
[400229872,1767207044276,-2000.0,0.00027616,7]
[400229874,1767207044286,-2000.0,0.00027625,7]
[400229875,1767207044296,-2000.0,0.00027634,7]
[400229876,1767207044305,-2000.0,0.00027642,7]
[400229877,1767207044315,-2000.0,0.00027651,7]
[400229878,1767207044324,-2000.0,0.0002766,7]
[400229879,1767207044333,-2000.0,0.00027669,7]
[400229880,1767207044343,-610.26,0.00027671,2]
[400229881,1767207044353,-1371.98,0.00027671,2]
[400229882,1767207044363,-1196.44,0.00027671,2]
[400229883,1767207044372,-508.03,0.00027671,2]
[400229884,1767207044382,-151.0,0.00027671,7]
[400229885,1767207044392,-177.291107,0.00027671,7]
[400229886,1767207044401,-435.404982,0.00027671,7]
[400229887,1767207044411,-352.845551,0.00027671,7]
[400229888,1767207044420,-270.454127,0.00027671,7]
[400229889,1767207044430,-435.404982,0.00027671,7]
[400229890,1767207044440,-352.845551,0.00027671,7]
[400229891,1767207044449,-270.454127,0.00027671,7]
[400229892,1767207044459,-352.845551,0.00027671,7]
[400229893,1767207044469,-435.404982,0.00027671,7]
[400229894,1767207044478,-5713.32,0.00027671,2]
[400229895,1767207044488,-270.454127,0.00027671,7]
[400229896,1767207044497,-435.404982,0.00027671,7]
[400229897,1767207044507,-352.845551,0.00027671,7]
[400229898,1767207044516,-270.454127,0.00027671,7]
[400229899,1767207044525,-151.0,0.00027671,7]
[400229900,1767207044535,-177.644782,0.00027671,7]
[400229901,1767207044544,-151.0,0.00027671,7]
[400229902,1767207044554,-151.0,0.00027671,7]
[400229903,1767207044564,-151.0,0.00027671,7]
[400229904,1767207044573,-394.521351,0.00027671,7]
[400229905,1767207044583,-874.95,0.00027671,2]
[400229906,1767207044593,-429.596572,0.00027671,7]
[400229907,1767207044603,-394.521351,0.00027671,7]
[400229908,1767207044612,-429.596572,0.00027671,7]
[400229909,1767207044621,-394.521351,0.00027671,7]
[400229910,1767207044630,-429.596572,0.00027671,7]
[400229911,1767207044639,-394.521351,0.00027671,7]
[400229912,1767207044648,-429.596572,0.00027671,7]
[400229913,1767207044658,-805.861522,0.00027671,7]
[400229914,1767207044668,-805.861522,0.00027671,7]
[400229915,1767207044677,-151.0,0.00027671,7]
[400229916,1767207044686,-805.861522,0.00027671,7]
[400229917,1767207044696,-151.0,0.00027671,7]
[400229918,1767207044706,-805.861522,0.00027671,7]
[400229919,1767207044715,-151.0,0.00027671,7]
[400229920,1767207044725,-1973.671944,0.00027671,7]
[400229921,1767207044734,-151.0,0.00027671,7]
[400229922,1767207044744,-1973.671944,0.00027671,7]
[400229923,1767207044753,-1973.671944,0.00027671,7]
[400229924,1767207044763,-1973.671944,0.00027671,7]
[400229925,1767207044772,-151.0,0.00027671,7]
[400229926,1767207044782,-227.124845,0.00027671,7]
[400229927,1767207044791,-227.124845,0.00027671,7]
[400229928,1767207044800,-227.124845,0.00027671,7]
[400229929,1767207044810,-2265.65,0.00027671,2]
[400229930,1767207044819,-227.124845,0.00027671,7]
[400229931,1767207044828,-1549.100689,0.00027671,7]
[400229932,1767207044837,-1549.100689,0.00027671,7]
[400229933,1767207044846,-1549.100689,0.00027671,7]
[400229934,1767207044855,-9696.43,0.00027671,2]
[400229935,1767207044864,-1549.100689,0.00027671,7]
[400229936,1767207044874,-230.54366,0.00027671,7]
[400229937,1767207044885,-230.54366,0.00027671,7]
[400229938,1767207044896,-230.54366,0.00027671,7]
[400229939,1767207044905,-230.54366,0.00027671,7]
[400229940,1767207044915,-524.16,0.00027671,2]
[400229941,1767207044925,-679.28,0.00027671,2]
[400229942,1767207044936,-580.59,0.00027671,2]
[400229943,1767207044946,-651.97,0.00027671,2]
[400229944,1767207044955,-546.52,0.00027671,2]
[400229945,1767207044966,-2000.0,0.00027678,7]
[400229946,1767207044975,-2000.0,0.00027686,7]
[400229947,1767207044985,-300.34133,0.00027695,7]
[400229948,1767207044994,-440.924061,0.00027695,7]
[400229949,1767207045003,-440.924061,0.00027695,7]
[400229950,1767207045012,-440.924061,0.00027695,7]
[400229951,1767207045022,-440.924061,0.00027695,7]
[400229952,1767207045030,-151.0,0.00027695,7]
[400229953,1767207045040,-151.000017,0.00027695,7]
[400229954,1767207045049,-151.0,0.00027695,7]
[400229955,1767207045058,-612.575308,0.00027695,7]
[400229956,1767207045067,-151.0,0.00027695,7]
[400229957,1767207045077,-612.575308,0.00027695,7]
[400229958,1767207045087,-612.575308,0.00027695,7]
[400229959,1767207045096,-612.575308,0.00027695,7]
[400229960,1767207045106,-151.0,0.00027695,7]
[400229961,1767207045116,-151.0,0.00027695,7]
[400229962,1767207045125,-2000.0,0.00027695,7]
[400229963,1767207045135,-12143.98,0.000277,2]
[400229964,1767207045144,-1324.78,0.000277,14]
[400229965,1767207045153,-151.371196,0.000277,7]
[400229966,1767207045163,-151.0,0.000277,7]
[400229967,1767207045173,-151.0,0.000277,7]
[400229968,1767207045182,-151.0,0.000277,7]
[400229969,1767207045191,-151.0,0.000277,7]
[400229970,1767207045201,-254.736127,0.000277,7]
[400229971,1767207045211,-856.210546,0.000277,7]
[400229972,1767207045220,-178.593012,0.000277,2]
[400229973,1767207045229,-151.0,0.000277,7]
[400229974,1767207045238,-856.210546,0.000277,7]
[400229975,1767207045247,-856.210546,0.000277,7]
[400229976,1767207045256,-856.210546,0.000277,7]
[400229977,1767207045265,-2000.0,0.00027704,7]
[400229978,1767207045275,-2000.0,0.00027713,7]
[400229979,1767207045284,-2000.0,0.00027722,7]
[400229980,1767207045293,-151.0,0.00027722,7]
[400229981,1767207045303,-151.0,0.00027722,7]
[400229982,1767207045312,-281.615911,0.00027722,7]
[400229983,1767207045321,-270.657289,0.00027722,7]
[400229984,1767207045330,-270.657289,0.00027722,7]
[400229985,1767207045339,-270.657289,0.00027722,7]
[400229986,1767207045348,-351.647028,0.00027722,7]